[Event "Titled Tuesday Blitz May 30 Late 2023"]
[White "Goltsev, Dmitry"]
[Black "Estrada Nieto, Julian"]
[WhiteFideId "24176710"]
[BlackFideId "5101018"]
[WhiteElo "2356"]
[BlackElo "2161"]
[Result "1/2-1/2"]
[Round "04"]
[TimeControl "180+2"]
[Date "2023.05.31"]
[WhiteClock "0:00:52"]
[BlackClock "0:00:16"]

1. e4 {[%clk 0:03:00]}  e5 {[%clk 0:02:59]} 2. Nf3 {[%clk 0:02:59]}  Nc6 {[%clk 0:03:00]} 3. Bb5 {[%clk 0:02:59]}  a6 {[%clk 0:03:00]} 4. Ba4 {[%clk 0:02:59]}  Nf6 {[%clk 0:03:01]} 5. O-O {[%clk 0:02:59]}  Be7 {[%clk 0:03:01]} 6. Re1 {[%clk 0:02:59]}  b5 {[%clk 0:03:02]} 7. Bb3 {[%clk 0:02:59]}  d6 {[%clk 0:03:03]} 8. c3 {[%clk 0:02:59]}  O-O {[%clk 0:03:02]} 9. d4 {[%clk 0:02:59]}  Bg4 {[%clk 0:03:02]} 10. h3 {[%clk 0:03:00]}  Bxf3 {[%clk 0:03:01]} 11. gxf3 {[%clk 0:02:59]}  Na5 {[%clk 0:02:53]} 12. Bc2 {[%clk 0:02:57]}  Nd7 {[%clk 0:02:53]} 13. Nd2 {[%clk 0:02:50]}  Bg5 {[%clk 0:02:47]} 14. Nf1 {[%clk 0:02:50]}  h6 {[%clk 0:02:43]} 15. Ng3 {[%clk 0:02:50]}  g6 {[%clk 0:02:34]} 16. Kh2 {[%clk 0:02:48]}  Nc4 {[%clk 0:02:29]} 17. Rg1 {[%clk 0:02:48]}  Kh7 {[%clk 0:02:26]} 18. b3 {[%clk 0:02:47]}  Ncb6 {[%clk 0:02:23]} 19. Be3 {[%clk 0:02:45]}  Qf6 {[%clk 0:02:18]} 20. Qe2 {[%clk 0:02:42]}  Bf4 {[%clk 0:02:18]} 21. Rg2 {[%clk 0:02:39]}  h5 {[%clk 0:02:16]} 22. Qd2 {[%clk 0:02:37]}  b4 {[%clk 0:02:00]} 23. Bxf4 {[%clk 0:02:35]}  bxc3 {[%clk 0:01:48]} 24. Qxc3 {[%clk 0:02:31]}  Qxf4 {[%clk 0:01:45]} 25. Qe3 {[%clk 0:02:23]}  c5 {[%clk 0:01:26]} 26. d5 {[%clk 0:02:16]}  Rac8 {[%clk 0:01:15]} 27. Qxf4 {[%clk 0:02:11]}  exf4 {[%clk 0:01:15]} 28. Ne2 {[%clk 0:02:12]}  Ne5 {[%clk 0:01:09]} 29. Nxf4 {[%clk 0:02:09]}  Nxf3+ {[%clk 0:01:08]} 30. Kh1 {[%clk 0:02:09]}  Nd4 {[%clk 0:01:07]} 31. Bd3 {[%clk 0:02:05]}  Nd7 {[%clk 0:01:02]} 32. Bxa6 {[%clk 0:02:02]}  Ra8 {[%clk 0:01:00]} 33. Bc4 {[%clk 0:02:02]}  Ne5 {[%clk 0:00:59]} 34. a4 {[%clk 0:01:57]}  Rfb8 {[%clk 0:00:57]} 35. Rg3 {[%clk 0:01:53]}  Nxc4 {[%clk 0:00:46]} 36. bxc4 {[%clk 0:01:54]}  Rb4 {[%clk 0:00:47]} 37. a5 {[%clk 0:01:55]}  Nb3 {[%clk 0:00:37]} 38. Ra2 {[%clk 0:01:52]}  Rxa5 {[%clk 0:00:29]} 39. Rc2 {[%clk 0:01:47]}  Nd4 {[%clk 0:00:26]} 40. Rcc3 {[%clk 0:01:45]}  Rb1+ {[%clk 0:00:22]} 41. Rg1 {[%clk 0:01:33]}  Rxg1+ {[%clk 0:00:21]} 42. Kxg1 {[%clk 0:01:34]}  g5 {[%clk 0:00:22]} 43. Kg2 {[%clk 0:01:20]}  gxf4 {[%clk 0:00:21]} 44. Rc1 {[%clk 0:01:21]}  h4 {[%clk 0:00:18]} 45. Rb1 {[%clk 0:01:19]}  f3+ {[%clk 0:00:18]} 46. Kg1 {[%clk 0:01:18]}  Ra4 {[%clk 0:00:17]} 47. Rb6 {[%clk 0:01:16]}  Rxc4 {[%clk 0:00:16]} 48. Rxd6 {[%clk 0:01:15]}  Rc1+ {[%clk 0:00:16]} 49. Kh2 {[%clk 0:01:15]}  Rf1 {[%clk 0:00:17]} 50. Rd7 {[%clk 0:01:14]}  Kg6 {[%clk 0:00:17]} 51. Rc7 {[%clk 0:01:12]}  Rxf2+ {[%clk 0:00:17]} 52. Kg1 {[%clk 0:01:09]}  Rg2+ {[%clk 0:00:17]} 53. Kf1 {[%clk 0:01:08]}  Ne2 {[%clk 0:00:16]} 54. Rc6+ {[%clk 0:00:54]}  Kg5 {[%clk 0:00:15]} 55. Rxc5 {[%clk 0:00:54]}  Ng3+ {[%clk 0:00:15]} 56. Ke1 {[%clk 0:00:54]}  f2+ {[%clk 0:00:16]} 57. Kd2 {[%clk 0:00:52]}  f1=Q+ {[%clk 0:00:17]} 58. Kc3 {[%clk 0:00:53]}  Qc1+ {[%clk 0:00:16]} 59. Kd4 {[%clk 0:00:52]}  Rd2+ {[%clk 0:00:16]} 60. Ke5 {[%clk 0:00:52]}  Qxc5 {[%clk 0:00:16]} 1/2-1/2


[Site "https://www.chess.com"]

[Event "Titled Tuesday Blitz May 30 Late 2023"]
[White "Goncalves, Davi Sulzbacher"]
[Black "Rosen, Eric"]
[WhiteFideId "2154510"]
[BlackFideId "2032562"]
[WhiteElo "2182"]
[BlackElo "2331"]
[Result "0-1"]
[Round "04"]
[TimeControl "180+2"]
[Date "2023.05.31"]
[WhiteClock "0:00:07"]
[BlackClock "0:00:21"]

1. Nf3 {[%clk 0:03:00]}  d5 {[%clk 0:02:59]} 2. g3 {[%clk 0:02:59]}  Nf6 {[%clk 0:03:00]} 3. Bg2 {[%clk 0:03:00]}  e6 {[%clk 0:03:00]} 4. O-O {[%clk 0:03:00]}  Be7 {[%clk 0:03:01]} 5. d4 {[%clk 0:03:00]}  b5 {[%clk 0:03:00]} 6. a4 {[%clk 0:02:59]}  b4 {[%clk 0:03:00]} 7. c4 {[%clk 0:02:59]}  bxc3 {[%clk 0:03:01]} 8. Nxc3 {[%clk 0:02:59]}  O-O {[%clk 0:03:02]} 9. Bf4 {[%clk 0:02:58]}  c5 {[%clk 0:02:56]} 10. Ne5 {[%clk 0:02:30]}  cxd4 {[%clk 0:02:41]} 11. Qxd4 {[%clk 0:02:29]}  Bb7 {[%clk 0:02:42]} 12. Rfd1 {[%clk 0:02:08]}  Qb6 {[%clk 0:02:26]} 13. Qxb6 {[%clk 0:01:24]}  axb6 {[%clk 0:02:27]} 14. Nb5 {[%clk 0:01:24]}  Na6 {[%clk 0:02:05]} 15. Nc4 {[%clk 0:01:06]}  Bc5 {[%clk 0:01:48]} 16. Ncd6 {[%clk 0:00:48]}  Bc6 {[%clk 0:01:48]} 17. e4 {[%clk 0:00:48]}  Nb4 {[%clk 0:01:27]} 18. e5 {[%clk 0:00:45]}  Ng4 {[%clk 0:01:26]} 19. Rd2 {[%clk 0:00:42]}  f6 {[%clk 0:01:27]} 20. exf6 {[%clk 0:00:38]}  Rxf6 {[%clk 0:01:24]} 21. h3 {[%clk 0:00:37]}  Nxf2 {[%clk 0:01:24]} 22. Kh2 {[%clk 0:00:27]}  e5 {[%clk 0:01:16]} 23. Bxe5 {[%clk 0:00:27]}  Re6 {[%clk 0:01:07]} 24. Nc7 {[%clk 0:00:19]}  Rxe5 {[%clk 0:01:00]} 25. Nxa8 {[%clk 0:00:19]}  Bxa8 {[%clk 0:01:00]} 26. Nc4 {[%clk 0:00:17]}  Re6 {[%clk 0:00:28]} 27. Rf1 {[%clk 0:00:15]}  Bc6 {[%clk 0:00:27]} 28. a5 {[%clk 0:00:14]}  dxc4 {[%clk 0:00:23]} 29. Rd8+ {[%clk 0:00:13]}  Kf7 {[%clk 0:00:23]} 30. Bxc6 {[%clk 0:00:10]}  Nxc6 {[%clk 0:00:24]} 31. Rd7+ {[%clk 0:00:10]}  Kg6 {[%clk 0:00:22]} 32. a6 {[%clk 0:00:10]}  b5 {[%clk 0:00:20]} 33. Rc7 {[%clk 0:00:09]}  Ba7 {[%clk 0:00:21]} 34. Rxa7 {[%clk 0:00:06]}  Nxa7 {[%clk 0:00:21]} 35. Rxf2 {[%clk 0:00:07]}  Rxa6 {[%clk 0:00:21]} 0-1


[Site "https://www.chess.com"]

[Event "Titled Tuesday Blitz May 30 Late 2023"]
[White "reevecanada"]
[Black "Annaberdiyev, Meylis"]
[BlackFideId "14000563"]
[WhiteElo "2457"]
[BlackElo "2416"]
[Result "1-0"]
[Round "04"]
[TimeControl "180+2"]
[Date "2023.05.31"]
[WhiteClock "0:00:07"]
[BlackClock "0:00:05"]

1. e4 {[%clk 0:03:00]}  c5 {[%clk 0:02:59]} 2. Nf3 {[%clk 0:02:59]}  Nc6 {[%clk 0:02:59]} 3. Bb5 {[%clk 0:02:57]}  d6 {[%clk 0:02:49]} 4. O-O {[%clk 0:02:54]}  Bd7 {[%clk 0:02:48]} 5. Re1 {[%clk 0:02:53]}  Nf6 {[%clk 0:02:45]} 6. c3 {[%clk 0:02:52]}  a6 {[%clk 0:02:45]} 7. Bf1 {[%clk 0:02:49]}  Bg4 {[%clk 0:02:45]} 8. h3 {[%clk 0:02:46]}  Bxf3 {[%clk 0:02:45]} 9. Qxf3 {[%clk 0:02:45]}  g6 {[%clk 0:02:46]} 10. d3 {[%clk 0:02:44]}  Bg7 {[%clk 0:02:46]} 11. Nd2 {[%clk 0:02:41]}  O-O {[%clk 0:02:46]} 12. g3 {[%clk 0:02:39]}  b5 {[%clk 0:02:43]} 13. Bg2 {[%clk 0:02:38]}  Nd7 {[%clk 0:02:41]} 14. Qe2 {[%clk 0:02:37]}  Rc8 {[%clk 0:02:33]} 15. Nf1 {[%clk 0:02:32]}  b4 {[%clk 0:02:33]} 16. Bd2 {[%clk 0:02:32]}  Nb6 {[%clk 0:02:29]} 17. a4 {[%clk 0:02:27]}  Nd7 {[%clk 0:02:02]} 18. f4 {[%clk 0:02:25]}  Na5 {[%clk 0:01:57]} 19. Qd1 {[%clk 0:02:17]}  bxc3 {[%clk 0:01:50]} 20. Bxc3 {[%clk 0:02:12]}  Nc6 {[%clk 0:01:47]} 21. Nd2 {[%clk 0:02:03]}  Nd4 {[%clk 0:01:42]} 22. Nf3 {[%clk 0:02:02]}  Qb6 {[%clk 0:01:40]} 23. Rb1 {[%clk 0:01:50]}  Rb8 {[%clk 0:01:38]} 24. Nxd4 {[%clk 0:01:43]}  cxd4 {[%clk 0:01:25]} 25. Bd2 {[%clk 0:01:37]}  Nc5 {[%clk 0:01:26]} 26. Bf1 {[%clk 0:01:36]}  Nb3 {[%clk 0:01:25]} 27. Qe2 {[%clk 0:01:30]}  Rfc8 {[%clk 0:01:24]} 28. Qg2 {[%clk 0:01:23]}  Rc2 {[%clk 0:01:06]} 29. Re2 {[%clk 0:01:17]}  Qc6 {[%clk 0:00:47]} 30. a5 {[%clk 0:01:11]}  Qb5 {[%clk 0:00:46]} 31. Be1 {[%clk 0:01:08]}  Rc5 {[%clk 0:00:34]} 32. Rc2 {[%clk 0:01:02]}  Rbc8 {[%clk 0:00:34]} 33. Rc4 {[%clk 0:00:58]}  Rxc4 {[%clk 0:00:20]} 34. dxc4 {[%clk 0:00:59]}  Qa4 {[%clk 0:00:20]} 35. Qc2 {[%clk 0:00:55]}  Nc5 {[%clk 0:00:17]} 36. b3 {[%clk 0:00:53]}  Qd7 {[%clk 0:00:14]} 37. Kh2 {[%clk 0:00:48]}  Qb7 {[%clk 0:00:12]} 38. Bd3 {[%clk 0:00:46]}  e5 {[%clk 0:00:12]} 39. b4 {[%clk 0:00:43]}  Nxd3 {[%clk 0:00:12]} 40. Qxd3 {[%clk 0:00:43]}  f5 {[%clk 0:00:13]} 41. exf5 {[%clk 0:00:33]}  e4 {[%clk 0:00:13]} 42. Qb3 {[%clk 0:00:33]}  e3 {[%clk 0:00:12]} 43. fxg6 {[%clk 0:00:30]}  hxg6 {[%clk 0:00:11]} 44. b5 {[%clk 0:00:27]}  Qf3 {[%clk 0:00:09]} 45. b6 {[%clk 0:00:19]}  Qe2+ {[%clk 0:00:08]} 46. Kg1 {[%clk 0:00:17]}  d3 {[%clk 0:00:08]} 47. c5+ {[%clk 0:00:16]}  Kh7 {[%clk 0:00:08]} 48. b7 {[%clk 0:00:15]}  Rb8 {[%clk 0:00:07]} 49. c6 {[%clk 0:00:14]}  d2 {[%clk 0:00:07]} 50. Qd1 {[%clk 0:00:13]}  dxe1=Q+ {[%clk 0:00:03]} 51. Qxe1 {[%clk 0:00:14]}  Qc2 {[%clk 0:00:04]} 52. Rc1 {[%clk 0:00:12]}  Qe4 {[%clk 0:00:04]} 53. c7 {[%clk 0:00:12]}  Bd4 {[%clk 0:00:04]} 54. cxb8=Q {[%clk 0:00:09]}  e2+ {[%clk 0:00:04]} 55. Kh2 {[%clk 0:00:07]}  Qf3 {[%clk 0:00:05]} 56. Qc7+ {[%clk 0:00:07]}  Kh6 {[%clk 0:00:05]} 57. b8=Q {[%clk 0:00:07]}  Bf2 {[%clk 0:00:05]} 58. Qh8# {[%clk 0:00:07]} 1-0


[Site "https://www.chess.com"]

[Event "Titled Tuesday Blitz May 30 Late 2023"]
[White "Popilski, Gil"]
[Black "Nilsen, Tobias Lang"]
[WhiteFideId "2809060"]
[BlackFideId "1521624"]
[WhiteElo "2537"]
[BlackElo "2183"]
[Result "1-0"]
[Round "04"]
[TimeControl "180+2"]
[Date "2023.05.31"]
[WhiteClock "0:00:37"]
[BlackClock "0:01:35"]

1. c4 {[%clk 0:03:00]}  c5 {[%clk 0:02:58]} 2. g3 {[%clk 0:02:59]}  g6 {[%clk 0:02:58]} 3. Bg2 {[%clk 0:02:59]}  Bg7 {[%clk 0:02:59]} 4. Nc3 {[%clk 0:02:59]}  Nc6 {[%clk 0:02:59]} 5. Rb1 {[%clk 0:02:58]}  d6 {[%clk 0:02:59]} 6. a3 {[%clk 0:02:58]}  e6 {[%clk 0:02:58]} 7. b4 {[%clk 0:02:57]}  Nge7 {[%clk 0:02:59]} 8. Bb2 {[%clk 0:02:55]}  O-O {[%clk 0:02:59]} 9. Ne4 {[%clk 0:02:46]}  Bxb2 {[%clk 0:02:56]} 10. Rxb2 {[%clk 0:02:47]}  f5 {[%clk 0:02:56]} 11. Nc3 {[%clk 0:02:31]}  e5 {[%clk 0:02:56]} 12. e3 {[%clk 0:02:26]}  Be6 {[%clk 0:02:55]} 13. Nd5 {[%clk 0:02:22]}  e4 {[%clk 0:02:49]} 14. Ne2 {[%clk 0:02:05]}  cxb4 {[%clk 0:02:44]} 15. Nef4 {[%clk 0:02:00]}  Bxd5 {[%clk 0:02:36]} 16. cxd5 {[%clk 0:01:59]}  Ne5 {[%clk 0:02:36]} 17. O-O {[%clk 0:01:53]}  bxa3 {[%clk 0:02:31]} 18. Rxb7 {[%clk 0:01:50]}  Rf7 {[%clk 0:02:18]} 19. d4 {[%clk 0:01:39]}  Nc4 {[%clk 0:02:11]} 20. Qa4 {[%clk 0:01:36]}  Nb6 {[%clk 0:02:04]} 21. Qxa3 {[%clk 0:01:02]}  Nbxd5 {[%clk 0:02:01]} 22. Nxd5 {[%clk 0:00:49]}  Nxd5 {[%clk 0:02:02]} 23. Rxf7 {[%clk 0:00:49]}  Kxf7 {[%clk 0:02:02]} 24. Qa2 {[%clk 0:00:48]}  Ke6 {[%clk 0:02:02]} 25. f3 {[%clk 0:00:46]}  Qg5 {[%clk 0:01:55]} 26. fxe4 {[%clk 0:00:44]}  Qxe3+ {[%clk 0:01:54]} 27. Kh1 {[%clk 0:00:45]}  fxe4 {[%clk 0:01:53]} 28. Bh3+ {[%clk 0:00:44]}  Ke7 {[%clk 0:01:49]} 29. Qxd5 {[%clk 0:00:42]}  Rf8 {[%clk 0:01:35]} 30. Qb7+ {[%clk 0:00:39]}  Ke8 {[%clk 0:01:35]} 31. Qd7# {[%clk 0:00:37]} 1-0


[Site "https://www.chess.com"]

[Event "Titled Tuesday Blitz May 30 Late 2023"]
[White "FromTexas54"]
[Black "Zhao, Erick"]
[BlackFideId "30946930"]
[WhiteElo "2437"]
[BlackElo "2631"]
[Result "1-0"]
[Round "04"]
[TimeControl "180+2"]
[Date "2023.05.31"]
[WhiteClock "0:00:25"]
[BlackClock "0:00:22"]

1. d4 {[%clk 0:02:55]}  d5 {[%clk 0:02:59]} 2. c4 {[%clk 0:02:56]}  e6 {[%clk 0:02:57]} 3. Nf3 {[%clk 0:02:56]}  Nd7 {[%clk 0:02:56]} 4. Nc3 {[%clk 0:02:57]}  dxc4 {[%clk 0:02:54]} 5. e4 {[%clk 0:02:51]}  Nb6 {[%clk 0:02:54]} 6. a4 {[%clk 0:02:50]}  a5 {[%clk 0:02:54]} 7. Be2 {[%clk 0:02:49]}  Bb4 {[%clk 0:02:53]} 8. Be3 {[%clk 0:02:45]}  Nf6 {[%clk 0:02:53]} 9. Qc2 {[%clk 0:02:42]}  O-O {[%clk 0:02:52]} 10. Rd1 {[%clk 0:02:26]}  Bd7 {[%clk 0:02:52]} 11. Ra1 {[%clk 0:02:12]}  Bc6 {[%clk 0:02:43]} 12. e5 {[%clk 0:02:09]}  Nfd5 {[%clk 0:02:41]} 13. Ng5 {[%clk 0:02:09]}  g6 {[%clk 0:02:40]} 14. h4 {[%clk 0:02:08]}  Nxe3 {[%clk 0:02:31]} 15. fxe3 {[%clk 0:02:09]}  Bxg2 {[%clk 0:02:31]} 16. Rg1 {[%clk 0:02:05]}  Bc6 {[%clk 0:02:30]} 17. h5 {[%clk 0:01:56]}  Be8 {[%clk 0:01:20]} 18. hxg6 {[%clk 0:01:51]}  fxg6 {[%clk 0:01:14]} 19. Nxe6 {[%clk 0:01:23]}  Qh4+ {[%clk 0:01:13]} 20. Kd2 {[%clk 0:01:24]}  Rf2 {[%clk 0:01:13]} 21. Nf4 {[%clk 0:01:04]}  Rxf4 {[%clk 0:00:59]} 22. Rh1 {[%clk 0:00:58]}  Rxd4+ {[%clk 0:00:51]} 23. exd4 {[%clk 0:00:51]}  Qxd4+ {[%clk 0:00:52]} 24. Ke1 {[%clk 0:00:49]}  Rd8 {[%clk 0:00:48]} 25. Rd1 {[%clk 0:00:48]}  Qe3 {[%clk 0:00:18]} 26. Rxd8 {[%clk 0:00:47]}  Qg3+ {[%clk 0:00:19]} 27. Kd1 {[%clk 0:00:37]}  Qxe5 {[%clk 0:00:20]} 28. Qe4 {[%clk 0:00:31]}  Qxe4 {[%clk 0:00:20]} 29. Nxe4 {[%clk 0:00:30]}  Kf7 {[%clk 0:00:21]} 30. Rxh7+ {[%clk 0:00:29]}  Ke6 {[%clk 0:00:22]} 31. Rxe8+ {[%clk 0:00:28]}  Kf5 {[%clk 0:00:22]} 32. Rf7# {[%clk 0:00:25]} 1-0


[Site "https://www.chess.com"]

[Event "Titled Tuesday Blitz May 30 Late 2023"]
[White "Hajiyev, Kanan"]
[Black "Isajevsky, Anton"]
[WhiteFideId "13404148"]
[BlackFideId "4142500"]
[WhiteElo "2103"]
[BlackElo "2510"]
[Result "1-0"]
[Round "04"]
[TimeControl "180+2"]
[Date "2023.05.31"]
[WhiteClock "0:00:15"]
[BlackClock "0:00:24"]

1. d4 {[%clk 0:02:49]}  e6 {[%clk 0:02:59]} 2. Nf3 {[%clk 0:02:49]}  Nf6 {[%clk 0:02:54]} 3. c4 {[%clk 0:02:50]}  d5 {[%clk 0:02:50]} 4. cxd5 {[%clk 0:02:51]}  exd5 {[%clk 0:02:49]} 5. Nc3 {[%clk 0:02:52]}  c6 {[%clk 0:02:49]} 6. Bg5 {[%clk 0:02:52]}  Be7 {[%clk 0:02:48]} 7. Qc2 {[%clk 0:02:52]}  Nbd7 {[%clk 0:02:46]} 8. e3 {[%clk 0:02:52]}  Nf8 {[%clk 0:02:46]} 9. Bd3 {[%clk 0:02:53]}  Ne6 {[%clk 0:02:43]} 10. Bh4 {[%clk 0:02:51]}  g6 {[%clk 0:02:42]} 11. O-O {[%clk 0:02:49]}  Ng7 {[%clk 0:02:39]} 12. Rab1 {[%clk 0:02:49]}  a5 {[%clk 0:02:35]} 13. a3 {[%clk 0:02:49]}  O-O {[%clk 0:02:13]} 14. b4 {[%clk 0:02:49]}  axb4 {[%clk 0:02:14]} 15. axb4 {[%clk 0:02:50]}  Bf5 {[%clk 0:02:04]} 16. b5 {[%clk 0:02:47]}  Bxd3 {[%clk 0:02:02]} 17. Qxd3 {[%clk 0:02:47]}  Nf5 {[%clk 0:01:48]} 18. bxc6 {[%clk 0:02:28]}  bxc6 {[%clk 0:01:48]} 19. Bg5 {[%clk 0:02:25]}  Ra3 {[%clk 0:01:33]} 20. Qc2 {[%clk 0:02:22]}  Qa5 {[%clk 0:01:24]} 21. Rfc1 {[%clk 0:02:05]}  Rc8 {[%clk 0:01:16]} 22. Ne5 {[%clk 0:01:56]}  Kg7 {[%clk 0:01:05]} 23. Rb7 {[%clk 0:01:02]}  Qa6 {[%clk 0:00:51]} 24. Bxf6+ {[%clk 0:00:40]}  Kxf6 {[%clk 0:00:50]} 25. Nxd5+ {[%clk 0:00:25]}  Ke6 {[%clk 0:00:30]} 26. Nc7+ {[%clk 0:00:14]}  Rxc7 {[%clk 0:00:24]} 27. Rxc7 {[%clk 0:00:15]} 1-0


[Site "https://www.chess.com"]

[Event "Titled Tuesday Blitz May 30 Late 2023"]
[White "Krishnan, Varun"]
[Black "Rangel, Daniel"]
[WhiteFideId "5054508"]
[BlackFideId "2124475"]
[WhiteElo "2614"]
[BlackElo "2256"]
[Result "0-1"]
[Round "04"]
[TimeControl "180+2"]
[Date "2023.05.31"]
[WhiteClock "0:01:02"]
[BlackClock "0:00:07"]

1. d4 {[%clk 0:03:00]}  Nf6 {[%clk 0:02:59]} 2. c4 {[%clk 0:03:00]}  e6 {[%clk 0:02:59]} 3. Nc3 {[%clk 0:03:00]}  d5 {[%clk 0:03:00]} 4. cxd5 {[%clk 0:02:59]}  exd5 {[%clk 0:03:01]} 5. Bg5 {[%clk 0:02:59]}  c6 {[%clk 0:03:01]} 6. e3 {[%clk 0:03:00]}  Be6 {[%clk 0:03:01]} 7. Bd3 {[%clk 0:03:00]}  Bd6 {[%clk 0:03:02]} 8. Nge2 {[%clk 0:03:00]}  Nbd7 {[%clk 0:03:02]} 9. O-O {[%clk 0:03:01]}  a6 {[%clk 0:03:02]} 10. Qc2 {[%clk 0:02:57]}  Bxh2+ {[%clk 0:02:59]} 11. Kh1 {[%clk 0:02:53]}  Bd6 {[%clk 0:02:55]} 12. Nf4 {[%clk 0:02:46]}  h6 {[%clk 0:02:43]} 13. Nxe6 {[%clk 0:02:46]}  hxg5+ {[%clk 0:02:41]} 14. Kg1 {[%clk 0:02:38]}  Bh2+ {[%clk 0:02:34]} 15. Kh1 {[%clk 0:02:38]}  fxe6 {[%clk 0:02:33]} 16. e4 {[%clk 0:02:33]}  Ke7 {[%clk 0:02:10]} 17. exd5 {[%clk 0:02:31]}  cxd5 {[%clk 0:02:01]} 18. Rfe1 {[%clk 0:02:30]}  Rh6 {[%clk 0:01:23]} 19. Bf5 {[%clk 0:02:25]}  Qh8 {[%clk 0:01:15]} 20. Bxe6 {[%clk 0:02:13]}  Kf8 {[%clk 0:01:11]} 21. Bh3 {[%clk 0:01:58]}  Rxh3 {[%clk 0:00:53]} 22. gxh3 {[%clk 0:01:59]}  Qxh3 {[%clk 0:00:54]} 23. Re3 {[%clk 0:01:58]}  Qh4 {[%clk 0:00:50]} 24. Kg2 {[%clk 0:01:37]}  Bf4 {[%clk 0:00:48]} 25. Ree1 {[%clk 0:01:27]}  Qg4+ {[%clk 0:00:35]} 26. Kf1 {[%clk 0:01:23]}  Qh3+ {[%clk 0:00:31]} 27. Kg1 {[%clk 0:01:12]}  Qh2+ {[%clk 0:00:28]} 28. Kf1 {[%clk 0:01:12]}  Qh1+ {[%clk 0:00:28]} 29. Ke2 {[%clk 0:01:12]}  Re8+ {[%clk 0:00:28]} 30. Kd3 {[%clk 0:01:10]}  Qf3+ {[%clk 0:00:24]} 31. Re3 {[%clk 0:01:04]}  Rxe3+ {[%clk 0:00:17]} 32. Kd2 {[%clk 0:01:04]}  Rxc3+ {[%clk 0:00:09]} 33. Ke1 {[%clk 0:01:04]}  Rxc2 {[%clk 0:00:08]} 34. Rc1 {[%clk 0:01:02]}  Rxc1# {[%clk 0:00:07]} 0-1


[Site "https://www.chess.com"]

[Event "Titled Tuesday Blitz May 30 Late 2023"]
[White "Roberz12"]
[Black "Adewumi, Tanitoluwa"]
[BlackFideId "30966396"]
[WhiteElo "2360"]
[BlackElo "2603"]
[Result "1-0"]
[Round "04"]
[TimeControl "180+2"]
[Date "2023.05.31"]
[WhiteClock "0:00:23"]
[BlackClock "0:00:01"]

1. e4 {[%clk 0:03:00]}  c5 {[%clk 0:02:45]} 2. Nf3 {[%clk 0:02:58]}  e6 {[%clk 0:02:41]} 3. d4 {[%clk 0:02:57]}  cxd4 {[%clk 0:02:42]} 4. Nxd4 {[%clk 0:02:58]}  Nc6 {[%clk 0:02:41]} 5. Nc3 {[%clk 0:02:57]}  Qc7 {[%clk 0:02:41]} 6. Be3 {[%clk 0:02:56]}  a6 {[%clk 0:02:38]} 7. Be2 {[%clk 0:02:56]}  Nf6 {[%clk 0:02:32]} 8. O-O {[%clk 0:02:55]}  Be7 {[%clk 0:02:31]} 9. f4 {[%clk 0:02:48]}  d6 {[%clk 0:02:27]} 10. Kh1 {[%clk 0:02:47]}  O-O {[%clk 0:02:23]} 11. f5 {[%clk 0:02:44]}  Nxd4 {[%clk 0:02:15]} 12. Bxd4 {[%clk 0:02:45]}  e5 {[%clk 0:02:13]} 13. Be3 {[%clk 0:02:44]}  b5 {[%clk 0:02:12]} 14. Bf3 {[%clk 0:02:36]}  Bb7 {[%clk 0:01:50]} 15. Bg5 {[%clk 0:02:31]}  Ne8 {[%clk 0:01:23]} 16. Be3 {[%clk 0:02:29]}  Nf6 {[%clk 0:01:10]} 17. a3 {[%clk 0:02:28]}  Rac8 {[%clk 0:01:07]} 18. Re1 {[%clk 0:02:19]}  Rfd8 {[%clk 0:00:57]} 19. Qe2 {[%clk 0:02:19]}  Qc4 {[%clk 0:00:56]} 20. Bb6 {[%clk 0:02:18]}  Rd7 {[%clk 0:00:49]} 21. Qf2 {[%clk 0:02:18]}  h6 {[%clk 0:00:43]} 22. Rad1 {[%clk 0:02:18]}  b4 {[%clk 0:00:39]} 23. axb4 {[%clk 0:02:14]}  Qxb4 {[%clk 0:00:39]} 24. Rd3 {[%clk 0:01:50]}  Qxb2 {[%clk 0:00:29]} 25. Rb1 {[%clk 0:01:49]}  Qa3 {[%clk 0:00:22]} 26. Rb3 {[%clk 0:01:38]}  Qc1+ {[%clk 0:00:20]} 27. Rd1 {[%clk 0:01:36]}  Qf4 {[%clk 0:00:16]} 28. Be3 {[%clk 0:01:37]}  Ng4 {[%clk 0:00:16]} 29. Bxg4 {[%clk 0:01:35]}  Qxg4 {[%clk 0:00:17]} 30. Qf3 {[%clk 0:01:31]}  h5 {[%clk 0:00:12]} 31. Rd2 {[%clk 0:01:22]}  Rc4 {[%clk 0:00:08]} 32. h3 {[%clk 0:01:22]}  Qxf3 {[%clk 0:00:05]} 33. gxf3 {[%clk 0:01:23]}  Rdc7 {[%clk 0:00:04]} 34. Rd3 {[%clk 0:00:59]}  a5 {[%clk 0:00:04]} 35. Nb5 {[%clk 0:00:55]}  a4 {[%clk 0:00:02]} 36. Rb1 {[%clk 0:00:48]}  Rc8 {[%clk 0:00:02]} 37. Nxd6 {[%clk 0:00:47]}  Bxd6 {[%clk 0:00:02]} 38. Rxd6 {[%clk 0:00:48]}  Ba8 {[%clk 0:00:02]} 39. Ra6 {[%clk 0:00:47]}  Rxc2 {[%clk 0:00:02]} 40. Rxa4 {[%clk 0:00:46]}  Re2 {[%clk 0:00:02]} 41. Bg1 {[%clk 0:00:45]}  Bc6 {[%clk 0:00:02]} 42. Rc1 {[%clk 0:00:45]}  Bxa4 {[%clk 0:00:02]} 43. Rxc8+ {[%clk 0:00:46]}  Kh7 {[%clk 0:00:02]} 44. Rc7 {[%clk 0:00:45]}  f6 {[%clk 0:00:02]} 45. Rc4 {[%clk 0:00:34]}  Bd1 {[%clk 0:00:02]} 46. Rc1 {[%clk 0:00:34]}  Re1 {[%clk 0:00:02]} 47. Kh2 {[%clk 0:00:31]}  Re2+ {[%clk 0:00:02]} 48. Kg3 {[%clk 0:00:31]}  Re1 {[%clk 0:00:01]} 49. Bf2 {[%clk 0:00:30]}  Rh1 {[%clk 0:00:01]} 50. Be3 {[%clk 0:00:25]}  Bxf3 {[%clk 0:00:01]} 51. Kxf3 {[%clk 0:00:26]}  Rxh3+ {[%clk 0:00:01]} 52. Ke2 {[%clk 0:00:25]}  Rh2+ {[%clk 0:00:01]} 53. Bf2 {[%clk 0:00:26]}  Rh3 {[%clk 0:00:01]} 54. Rd1 {[%clk 0:00:23]}  Ra3 {[%clk 0:00:01]} 55. Rh1 {[%clk 0:00:23]} 1-0


[Site "https://www.chess.com"]